bitfinex/quotes_BTCUSD_20240817
["timestamp","ask_amount","ask_price","bid_price","bid_amount"]
[1723853336823,1.6503929,59000.0,58999.0,0.0009064]
[1723853338369,1.49848792,59000.0,58999.0,0.0009064]
[1723853338635,1.82194744,59000.0,58999.0,0.0009064]
[1723853338790,1.82394744,59000.0,58999.0,0.0009064]
[1723853339435,2.16393044,59000.0,58999.0,0.0009064]
[1723853339637,2.16493044,59000.0,58999.0,0.0009064]
[1723853339813,1.9933759,59000.0,58999.0,0.0009064]
[1723853340434,1.76967199,59000.0,58999.0,0.0009064]
[1723853340609,1.49748792,59000.0,58999.0,0.0009064]
[1723853341233,0.95697146,59000.0,58999.0,0.0009064]
[1723853341554,1.15557318,59000.0,58999.0,0.0009064]
[1723853341854,1.15457318,59000.0,58999.0,0.0009064]
[1723853343531,1.15557318,59000.0,58999.0,0.0009064]
[1723853343731,1.66811072,59000.0,58999.0,0.0009064]
[1723853343930,1.33819172,59000.0,58999.0,0.0009064]
[1723853344131,1.67717472,59000.0,58999.0,0.0009064]
[1723853344639,1.33819172,59000.0,58999.0,0.0009064]
[1723853345371,1.67717472,59000.0,58999.0,0.0009064]
[1723853345600,1.33819172,59000.0,58999.0,0.0009064]
[1723853345756,1.67717472,59000.0,58999.0,0.0009064]
[1723853345958,1.16655982,59000.0,58999.0,0.0009064]
[1723853346427,1.50554282,59000.0,58999.0,0.0009064]
[1723853346627,1.16655982,59000.0,58999.0,0.0009064]
[1723853347196,1.50554282,59000.0,58999.0,0.0009064]
[1723853347569,1.16655982,59000.0,58999.0,0.0009064]
[1723853347972,1.50554282,59000.0,58999.0,0.0009064]
[1723853348168,1.34011436,59000.0,58999.0,0.0009064]
[1723853348375,1.67909736,59000.0,58999.0,0.0009064]
[1723853349405,1.50354282,59000.0,58999.0,0.0009064]
[1723853350002,1.51161267,59000.0,58999.0,0.0009064]
[1723853350609,1.31408831,59000.0,58999.0,0.0009064]
[1723853350815,1.51138948,59000.0,58999.0,0.0009064]
[1723853352567,1.51338948,59000.0,58999.0,0.0009064]
[1723853356666,1.94276824,59000.0,58999.0,0.0009064]
[1723853356868,1.60378524,59000.0,58999.0,0.0009064]
[1723853357281,1.85237248,59000.0,58999.0,0.0009064]
[1723853359541,0.35012569,58990.0,58989.0,0.0057768]
[1723853359729,0.51964569,58990.0,58989.0,0.0057768]
[1723853359935,0.53392431,58990.0,58989.0,0.0057768]
[1723853362498,0.36420031,58990.0,58989.0,0.0057768]
[1723853362854,0.36420031,58990.0,58989.0,0.0067768]
[1723853363549,0.24870031,58990.0,58989.0,0.2867768]
[1723853363761,0.36420031,58990.0,58989.0,0.2867768]
[1723853367764,0.04870031,58990.0,58989.0,0.4562998]
[1723853367966,0.16420031,58990.0,58989.0,0.4562998]
[1723853368192,0.16420031,58990.0,58989.0,0.7953458]
[1723853368792,0.16420031,58990.0,58989.0,1.1343918]
[1723853368793,0.04670031,58990.0,58989.0,1.1343918]
[1723853369036,0.04670031,58990.0,58989.0,1.25897293]
[1723853369263,0.03,58990.0,58989.0,1.25897293]
[1723853369678,0.03,58990.0,58989.0,0.41135793]
[1723853369679,0.03182954,58990.0,58989.0,0.41135793]
[1723853369884,0.03282954,58990.0,58989.0,0.2590768]
[1723853370088,0.04738013,58990.0,58989.0,0.2590768]
[1723853375037,0.04738013,58990.0,58989.0,0.7676458]
[1723853375204,0.04738013,58990.0,58989.0,0.4285998]
[1723853375406,0.16288013,58990.0,58989.0,0.4285998]
[1723853378401,0.16288013,58990.0,58989.0,0.2590768]
[1723853378603,0.16288013,58990.0,58989.0,0.1067768]
[1723853378604,0.21346698,58990.0,58989.0,0.1067768]
[1723853379639,0.23876041,58990.0,58989.0,0.1067768]
[1723853380833,0.36156041,58990.0,58989.0,0.1067768]
[1723853381015,0.28568013,58990.0,58989.0,0.1067768]
[1723853381216,0.23897779,58990.0,58989.0,0.1067768]
[1723853382210,0.23897982,58990.0,58989.0,0.1067768]
[1723853382410,0.23897982,58990.0,58989.0,0.5448998]
[1723853382614,0.23897928,58990.0,58989.0,0.5448998]
[1723853382816,0.16288013,58990.0,58989.0,0.5448998]
[1723853383246,0.16288013,58990.0,58989.0,0.4231998]
[1723853383610,0.16288013,58990.0,58989.0,0.2762998]
[1723853383808,0.43728013,58990.0,58989.0,0.1067768]
[1723853384250,0.51337928,58990.0,58989.0,0.1067768]
[1723853385663,0.51340168,58990.0,58989.0,0.1067768]
[1723853385863,0.63541066,58990.0,58989.0,0.1067768]
[1723853386217,0.43402861,58990.0,58989.0,0.1067768]
[1723853387130,0.89153645,58990.0,58989.0,0.0067768]
[1723853387303,1.33185475,58990.0,58989.0,0.0067768]
[1723853387701,1.4841251,58990.0,58989.0,0.0067768]
[1723853388106,1.1450851,58990.0,58989.0,0.0067768]
[1723853388310,0.24079475,58990.0,58989.0,0.0067768]
[1723853388510,0.24079475,58990.0,58989.0,0.0057768]
[1723853388511,0.48315901,58990.0,58989.0,0.0057768]
[1723853388718,0.35729475,58990.0,58989.0,0.0007768]
[1723853389052,0.4587863,58990.0,58989.0,0.0007768]
[1723853389375,0.35729475,58990.0,58989.0,0.0007768]
[1723853389576,0.35729475,58990.0,58989.0,0.0017768]
[1723853390096,0.24161875,58990.0,58989.0,0.0017768]
[1723853390297,0.35711875,58990.0,58989.0,0.0017768]
[1723853390816,0.48398301,58990.0,58989.0,0.0017768]
[1723853391649,0.35711875,58990.0,58989.0,0.0017768]
[1723853391849,0.54413696,58990.0,58989.0,0.0017768]
[1723853392250,0.47573866,58990.0,58989.0,0.0017768]
[1723853393484,0.60259664,58990.0,58989.0,0.0017768]
[1723853394060,0.47573866,58990.0,58989.0,0.0017768]
[1723853395118,0.36900112,58990.0,58989.0,0.0017768]
[1723853395333,0.48450112,58990.0,58989.0,0.2923998]
[1723853395535,0.35884516,58990.0,58989.0,0.6314458]
[1723853395737,0.16045261,58990.0,58989.0,0.7314458]
[1723853395939,0.23657158,58990.0,58989.0,0.3923998]
[1723853397125,0.16045261,58990.0,58989.0,0.7314458]
[1723853397299,0.23657093,58990.0,58989.0,0.7314458]
[1723853398121,0.23557093,58990.0,58989.0,0.7314458]
[1723853398326,0.23657093,58990.0,58989.0,0.7314458]
[1723853398684,0.11907093,58990.0,58989.0,1.2175918]
[1723853398933,0.15845261,58990.0,58989.0,1.2175918]
[1723853399366,0.20919676,58990.0,58989.0,1.2175918]
[1723853399576,0.04053092,58990.0,58989.0,1.5566378]
[1723853399757,0.04053092,58990.0,58989.0,1.58121816]
[1723853399985,0.030824,58990.0,58989.0,1.58121816]
[1723853401103,0.030824,58990.0,58989.0,1.58021816]
[1723853401305,0.032824,58990.0,58989.0,1.58221816]
[1723853401658,0.031824,58990.0,58989.0,1.58021816]
[1723853402033,0.032824,58990.0,58989.0,1.58221816]
[1723853402658,0.031824,58990.0,58989.0,1.58021816]
[1723853402896,0.030824,58990.0,58989.0,1.58021816]
[1723853403106,0.031824,58990.0,58989.0,1.58021816]
[1723853403314,0.14915354,58990.0,58989.0,0.29488016]
[1723853403515,0.14815354,58990.0,58989.0,0.6093458]
[1723853403714,0.15494597,58990.0,58989.0,0.8775458]
[1723853403864,0.14815354,58990.0,58989.0,0.8775458]
[1723853404431,0.15274569,58990.0,58989.0,0.8795458]
[1723853404631,0.15274569,58990.0,58989.0,0.4193998]
[1723853404994,0.15274569,58990.0,58989.0,0.2722998]
[1723853405603,0.16055189,58990.0,58989.0,0.2722998]
[1723853405831,0.15274569,58990.0,58989.0,0.2722998]
[1723853406038,0.16055189,58990.0,58989.0,0.2722998]
[1723853406913,0.44965189,58990.0,58989.0,0.2722998]
[1723853407111,0.44965189,58990.0,58989.0,0.0027768]
[1723853407316,0.64137604,58990.0,58989.0,0.0027768]
[1723853407529,0.7682385,58990.0,58989.0,0.0027768]
[1723853407737,0.64137604,58990.0,58989.0,0.0027768]
[1723853407910,0.74182107,58990.0,58989.0,0.0027768]
[1723853408365,0.62532107,58990.0,58989.0,0.0007768]
[1723853408558,0.44865189,58990.0,58989.0,0.0027768]
[1723853408757,0.64680452,58990.0,58989.0,0.0027768]
[1723853408877,0.64580452,58990.0,58989.0,0.0007768]
[1723853409286,0.64665939,58990.0,58989.0,0.0027768]
[1723853409494,0.44865189,58990.0,58989.0,0.0027768]
[1723853409701,0.64761597,58990.0,58989.0,0.0027768]
[1723853410118,0.64661597,58990.0,58989.0,0.0027768]
[1723853410547,0.64761597,58990.0,58989.0,0.0027768]
[1723853411155,0.749061,58990.0,58989.0,0.0027768]
[1723853411377,0.64761597,58990.0,58989.0,0.0027768]
[1723853411572,0.16055189,58990.0,58989.0,0.0027768]
[1723853411753,0.16055189,58990.0,58989.0,0.1722998]
[1723853413382,0.21128024,58990.0,58989.0,0.0027768]
[1723853413721,0.16055189,58990.0,58989.0,0.0027768]
[1723853413891,0.2112816,58990.0,58989.0,0.0027768]
[1723853414222,0.16055189,58990.0,58989.0,0.0027768]
[1723853414602,0.23664319,58990.0,58989.0,0.0027768]
[1723853415584,0.16055189,58990.0,58989.0,0.0027768]
[1723853415986,0.23664319,58990.0,58989.0,0.0027768]
[1723853416446,0.35858434,58990.0,58989.0,0.0027768]
[1723853416651,0.45970006,58990.0,58989.0,0.0027768]
[1723853416859,0.62080006,58990.0,58989.0,0.0027768]
[1723853416979,0.39773952,58990.0,58989.0,0.0027768]
[1723853417179,0.32165189,58990.0,58989.0,0.0027768]
[1723853417639,0.62120702,58990.0,58989.0,0.0027768]
[1723853417879,0.74920702,58990.0,58989.0,0.0027768]
[1723853418081,0.7492084,58990.0,58989.0,0.0027768]
[1723853418254,0.74920885,58990.0,58989.0,0.0027768]
[1723853418456,0.74920742,58990.0,58989.0,0.0027768]
[1723853418863,0.64776199,58990.0,58989.0,0.0027768]
[1723853419014,0.74920641,58990.0,58989.0,0.0027768]
[1723853421114,0.74920378,58990.0,58989.0,0.0027768]
[1723853421575,0.74915421,58990.0,58989.0,0.0027768]
[1723853422231,0.94821471,58990.0,58989.0,0.0027768]
[1723853422437,1.01637678,58990.0,58989.0,0.0027768]
[1723853425141,0.84685678,58990.0,58989.0,0.0027768]
[1723853425382,0.84585678,58990.0,58989.0,0.0027768]
[1723853425876,0.84485678,58990.0,58989.0,0.0007768]
[1723853426121,0.84485678,58990.0,58989.0,0.0017768]
[1723853426610,1.01437678,58990.0,58989.0,0.0017768]
[1723853427862,0.84485678,58990.0,58989.0,0.0017768]
[1723853428421,0.97154126,58990.0,58989.0,0.0017768]
[1723853428622,0.83705058,58990.0,58989.0,0.0017768]
[1723853429023,0.96372044,58990.0,58989.0,0.0017768]
[1723853429224,1.13324044,58990.0,58989.0,0.0017768]
[1723853429500,1.13323781,58990.0,58989.0,0.0017768]
[1723853429867,0.96371781,58990.0,58989.0,0.0017768]
[1723853430122,1.13323781,58990.0,58989.0,0.0017768]
[1723853430259,1.13324076,58990.0,58989.0,0.0017768]
[1723853430464,1.00657058,58990.0,58989.0,0.0017768]
[1723853430869,0.83705058,58990.0,58989.0,0.0017768]
[1723853431187,0.83593227,58990.0,58989.0,0.0017768]
[1723853431934,0.85115932,58990.0,58989.0,0.0017768]
[1723853434433,1.02067932,58990.0,58989.0,0.0017768]
[1723853436031,0.85115932,58990.0,58989.0,0.0017768]
[1723853436409,0.97782331,58990.0,58989.0,0.0017768]
[1723853437122,1.14734331,58990.0,58989.0,0.0017768]
[1723853437743,1.02067932,58990.0,58989.0,0.0017768]
[1723853440395,0.85040079,58990.0,58989.0,0.0017768]
[1723853440811,0.97705244,58990.0,58989.0,0.0017768]
[1723853443296,0.9762229,58990.0,58989.0,0.0017768]
[1723853444182,0.37045244,58990.0,58989.0,0.3192998]
[1723853444310,0.04847274,58990.0,58989.0,1.2262918]
[1723853444942,0.03324569,58990.0,58989.0,1.2262918]
[1723853447581,0.030824,58990.0,58989.0,1.5653378]
[1723853447995,0.000824,58990.0,58989.0,1.58991813]
[1723853448404,0.000824,58990.0,58989.0,1.61291813]
[1723853448822,0.000824,58990.0,58989.0,1.5873378]
[1723853449034,0.000824,58990.0,58989.0,1.61191739]
[1723853449238,0.001824,58990.0,58989.0,1.61391739]
[1723853449413,0.000824,58990.0,58989.0,1.95096339]
[1723853449641,0.001824,58990.0,58989.0,1.95096339]
[1723853449843,0.002824,58990.0,58989.0,1.95296339]
[1723853450128,0.002824,58990.0,58989.0,2.46414224]
[1723853450129,1e-06,58990.0,58989.0,2.46414224]
[1723853450347,0.00017691,59000.0,58999.0,1.458158]
[1723853450539,0.00017691,59000.0,58999.0,2.0947839]
[1723853451393,0.00017691,59000.0,58999.0,2.26633844]
[1723853451567,0.00017691,59000.0,58999.0,2.26533844]
[1723853452400,0.00117691,59000.0,58999.0,2.26533844]
[1723853452841,0.00217691,59000.0,58999.0,2.27933844]
[1723853453044,0.00217691,59000.0,58999.0,2.27876013]
[1723853453250,0.00217691,59000.0,58999.0,2.16326013]
[1723853454244,0.00217691,59000.0,58999.0,2.17389946]
[1723853454998,0.00217691,59000.0,58999.0,1.97776533]
[1723853455199,0.00217691,59000.0,58999.0,1.61577733]
[1723853458362,0.00217691,59000.0,58999.0,1.63877733]
[1723853459054,0.00217691,59000.0,58999.0,1.97776533]
[1723853467570,0.00217691,59000.0,58999.0,1.70606533]
[1723853468024,0.00217691,59000.0,58999.0,1.34407733]
[1723853473113,0.00300645,59000.0,58999.0,1.34498373]
[1723853473361,0.01284844,59000.0,58999.0,1.34498373]
[1723853473935,0.0120189,59000.0,58999.0,1.34498373]
[1723853474277,0.00217691,59000.0,58999.0,1.34498373]
[1723853474513,0.00217691,59000.0,58999.0,1.62048373]
[1723853474753,0.00217691,59000.0,58999.0,2.29427239]
[1723853474927,0.00217691,59000.0,58999.0,2.29468024]
[1723853476282,0.00217691,59000.0,58999.0,2.63366824]
[1723853476520,0.00217691,59000.0,58999.0,2.29467745]
[1723853476727,0.00217691,59000.0,58999.0,2.33457535]
[1723853476941,0.00217691,59000.0,58999.0,2.67356335]
[1723853478236,0.000824,59008.0,59007.0,1.800739]
[1723853478440,0.000824,59008.0,59007.0,1.94831187]
[1723853479450,0.001824,59008.0,59007.0,1.95731187]
[1723853480574,0.001824,59008.0,59007.0,1.95731157]
[1723853480855,0.001824,59008.0,59007.0,1.68181157]
[1723853481034,0.002824,59008.0,59007.0,1.68481157]
[1723853483406,0.01080987,59008.0,59007.0,1.68481157]
[1723853484525,0.01080987,59008.0,59007.0,1.69516642]
[1723853485010,0.002824,59008.0,59007.0,1.69516642]
[1723853485979,0.002824,59008.0,59007.0,1.35622442]
[1723853486576,0.002824,59008.0,59007.0,1.33322442]
[1723853487708,0.002824,59008.0,59007.0,1.33322524]
[1723853488861,0.002824,59008.0,59007.0,1.33322559]
[1723853493792,0.002824,59008.0,59007.0,1.33322588]
[1723853498292,0.27044569,59008.0,59007.0,0.63076785]
[1723853498581,0.27044569,59008.0,59007.0,0.19182585]
[1723853498851,0.27044569,59008.0,59007.0,0.53076785]
[1723853500169,0.32314798,59008.0,59007.0,0.012]
[1723853500391,0.34849913,59008.0,59007.0,0.012]
[1723853501228,0.34849913,59008.0,59007.0,0.112]
[1723853501645,0.27244569,59008.0,59007.0,0.112]
[1723853501848,0.27244569,59008.0,59007.0,0.620413]
[1723853502049,0.3231601,59008.0,59007.0,0.620413]
[1723853502484,0.27244569,59008.0,59007.0,0.620413]
[1723853502685,0.3231601,59008.0,59007.0,0.620413]
[1723853502906,0.27244569,59008.0,59007.0,0.281471]
[1723853503057,0.3231601,59008.0,59007.0,0.281471]
[1723853503419,0.27244569,59008.0,59007.0,0.112]
[1723853503618,0.27244569,59008.0,59007.0,0.012]
[1723853503898,0.3231601,59008.0,59007.0,0.012]
[1723853506548,0.3807,59007.0,59006.0,0.27995024]
[1723853506756,0.38412169,59007.0,59006.0,0.27995024]
[1723853507730,0.38412169,59007.0,59006.0,0.29295024]
[1723853507895,0.38412169,59007.0,59006.0,0.282473]
[1723853507896,0.38612169,59007.0,59006.0,0.282473]
[1723853508496,0.38712169,59007.0,59006.0,0.293473]
[1723853509122,0.38612169,59007.0,59006.0,0.280473]
[1723853509318,0.38612169,59007.0,59006.0,0.291473]
[1723853517027,0.38612169,59007.0,59006.0,0.122]
[1723853517236,0.38612169,59007.0,59006.0,0.022]
[1723853525184,1.23347669,59007.0,59006.0,0.022]
[1723853525387,1.76095781,59007.0,59006.0,0.022]
[1723853525597,2.03163297,59007.0,59006.0,0.022]
[1723853525802,0.68020969,59001.0,59000.0,0.0009064]
[1723853526014,1.32582581,59001.0,59000.0,0.0009064]
[1723853526221,1.67283161,59001.0,59000.0,0.0009064]
[1723853527252,1.67583161,59001.0,59000.0,0.0009064]
[1723853527671,1.22335461,59001.0,59000.0,0.0009064]
[1723853527883,1.33885461,59001.0,59000.0,0.0009064]
[1723853529405,1.34992187,59001.0,59000.0,0.0009064]
[1723853529614,1.46542187,59001.0,59000.0,0.0009064]
[1723853530020,1.34992187,59001.0,59000.0,0.0009064]
[1723853530195,0.71488961,59001.0,59000.0,0.0009064]
[1723853530424,1.10111291,59001.0,59000.0,0.0009064]
[1723853530625,0.49247327,59001.0,59000.0,0.0009064]
[1723853530835,0.44185049,59001.0,59000.0,0.0009064]
[1723853535615,0.49247327,59001.0,59000.0,0.0009064]
[1723853535819,0.83145027,59001.0,59000.0,0.0009064]
[1723853536078,1.26818664,59001.0,59000.0,0.0009064]
[1723853536271,1.14161938,59001.0,59000.0,0.0009064]
[1723853536480,1.26818664,59001.0,59000.0,0.0009064]
[1723853536618,1.26814127,59001.0,59000.0,0.0009064]
[1723853536816,1.31317392,59001.0,59000.0,0.0009064]
[1723853537564,1.26813881,59001.0,59000.0,0.0009064]
[1723853537889,1.13906756,59001.0,59000.0,0.0009064]
[1723853538231,1.47804456,59001.0,59000.0,0.0009064]
[1723853539437,1.48104456,59001.0,59000.0,0.0009064]
[1723853539864,1.47804456,59001.0,59000.0,0.0009064]
[1723853540031,1.80242133,59001.0,59000.0,0.0009064]
[1723853540227,1.80142133,59001.0,59000.0,0.0009064]
[1723853541038,2.14039833,59001.0,59000.0,0.0009064]
[1723853541252,2.14139833,59001.0,59000.0,0.0009064]
[1723853541464,1.9885761,59001.0,59000.0,0.0009064]
[1723853541938,2.14039833,59001.0,59000.0,0.0009064]
[1723853542142,2.13718886,59001.0,59000.0,0.0009064]
[1723853542341,1.98842964,59001.0,59000.0,0.0009064]
[1723853542614,1.98542964,59001.0,59000.0,0.0009064]
[1723853542787,2.13718886,59001.0,59000.0,0.0009064]
[1723853543241,1.98542964,59001.0,59000.0,0.0009064]
[1723853543616,2.13718886,59001.0,59000.0,0.0009064]
[1723853544074,1.95542964,59001.0,59000.0,0.0009064]
[1723853544286,1.98542964,59001.0,59000.0,0.0009064]
[1723853545208,2.13718886,59001.0,59000.0,0.0009064]
[1723853545359,1.98642964,59001.0,59000.0,8.93e-06]
[1723853545565,2.13818886,59001.0,59000.0,8.93e-06]
[1723853545768,1.96563432,59001.0,59000.0,8.93e-06]
[1723853545973,1.8148751,59001.0,59000.0,8.93e-06]
[1723853546170,1.8168751,59001.0,59000.0,8.93e-06]
[1723853547022,1.96863432,59001.0,59000.0,8.93e-06]
[1723853547245,1.8168751,59001.0,59000.0,8.93e-06]
[1723853547447,1.98542964,59001.0,59000.0,8.93e-06]
[1723853547848,1.98642964,59001.0,59000.0,8.93e-06]
[1723853548217,1.98842964,59001.0,59000.0,8.93e-06]
[1723853548685,1.99522564,59001.0,59000.0,8.93e-06]
[1723853555425,1.19286169,59000.0,58999.0,0.00087533]
[1723853555628,1.6560673,59000.0,58999.0,0.00087533]
[1723853555830,1.66395897,59000.0,58999.0,0.00087533]
[1723853556553,1.66695897,59000.0,58999.0,0.00087533]
[1723853558436,1.66995897,59000.0,58999.0,0.00087533]
[1723853558619,1.84151351,59000.0,58999.0,0.00087533]
[1723853559136,1.35862169,58990.0,58989.0,0.0007768]
[1723853559316,2.09749264,58990.0,58989.0,0.0007768]
[1723853559548,2.12476696,58990.0,58989.0,0.0007768]
[1723853559751,2.00614291,58990.0,58989.0,0.0007768]
[1723853559958,0.23442169,58984.0,58980.0,0.009064]
[1723853560164,1.13513369,58984.0,58980.0,0.009064]
[1723853560368,1.48196492,58984.0,58980.0,0.009064]
[1723853560590,1.55778174,58984.0,58980.0,0.009064]
[1723853561350,1.82103992,58984.0,58980.0,0.009064]
[1723853561574,1.12515954,58981.0,58980.0,0.009064]
[1723853561779,1.75933083,58981.0,58980.0,0.009064]
[1723853561940,1.86814769,58981.0,58980.0,0.009064]
[1723853562136,1.97201738,58981.0,58980.0,0.009064]
[1723853562365,1.86814769,58981.0,58980.0,0.009064]
[1723853562570,1.76708713,58981.0,58980.0,0.009064]
[1723853562727,1.77108713,58981.0,58980.0,0.009064]
[1723853562942,1.87212343,58981.0,58980.0,0.009064]
[1723853563138,1.87212084,58981.0,58980.0,0.009064]
[1723853563338,1.87612084,58981.0,58980.0,0.009064]
[1723853563558,2.03369011,58981.0,58980.0,0.009064]
[1723853563780,1.9336564,58981.0,58980.0,0.009064]
[1723853563959,2.1060564,58981.0,58980.0,0.009064]
[1723853564357,2.20704705,58981.0,58980.0,0.009064]
[1723853564554,2.1060564,58981.0,58980.0,0.009064]
[1723853564959,2.1090564,58981.0,58980.0,0.009064]
[1723853565406,2.21003679,58981.0,58980.0,0.009064]
[1723853565839,2.1090564,58981.0,58980.0,0.009064]
[1723853566255,2.10564668,58981.0,58980.0,0.009064]
[1723853566459,2.20661996,58981.0,58980.0,0.009064]
[1723853566665,2.10564668,58981.0,58980.0,0.009064]
[1723853567443,2.10381714,58981.0,58980.0,0.009064]
[1723853567660,2.10306992,58981.0,58980.0,0.009064]
[1723853567869,2.10489946,58981.0,58980.0,0.009064]
[1723853568224,2.23110904,58981.0,58980.0,0.009064]
[1723853568426,2.10489946,58981.0,58980.0,0.009064]
[1723853569356,2.10189946,58981.0,58980.0,0.009064]
[1723853569566,2.22910904,58981.0,58980.0,0.009064]
[1723853569777,2.07053977,58981.0,58980.0,0.009064]
[1723853569990,1.94533019,58981.0,58980.0,0.009064]
[1723853570360,1.94733019,58981.0,58980.0,0.009064]
[1723853571562,1.34186069,58980.0,58979.0,0.00206269]
[1723853571777,1.63919089,58980.0,58979.0,0.00206269]
[1723853572106,1.64687381,58980.0,58979.0,0.00206269]
[1723853572666,1.82142835,58980.0,58979.0,0.00206269]
[1723853573148,1.82342835,58980.0,58979.0,0.00206269]
[1723853573766,1.82105295,58980.0,58979.0,0.00206269]
[1723853573979,1.84766301,58980.0,58979.0,0.00206269]
[1723853574539,1.46638169,58979.0,58978.0,0.08524214]
[1723853574741,1.63383649,58979.0,58978.0,0.08524214]
[1723853574944,1.73472696,58979.0,58978.0,0.08524214]
[1723853575122,1.64146824,58979.0,58978.0,0.08524214]
[1723853575968,1.74235871,58979.0,58978.0,0.08524214]
[1723853576166,1.64146824,58979.0,58978.0,0.08524214]
[1723853576371,1.64246824,58979.0,58978.0,0.08524214]
[1723853576584,1.47301344,58979.0,58978.0,0.08524214]
[1723853576756,1.64456424,58979.0,58978.0,0.08524214]
[1723853576928,1.47401344,58979.0,58978.0,0.08524214]
[1723853577162,1.64444267,58979.0,58978.0,0.08524214]
[1723853577362,1.74533314,58979.0,58978.0,0.08524214]
[1723853578234,1.74521706,58979.0,58978.0,0.08524214]
[1723853578442,1.74821706,58979.0,58978.0,0.08524214]
[1723853578792,1.9197716,58979.0,58978.0,0.08524214]
[1723853579403,1.74521706,58979.0,58978.0,0.08524214]
[1723853579623,1.64432708,58979.0,58978.0,0.08524214]
[1723853580036,1.64532708,58979.0,58978.0,0.08524214]
[1723853580383,1.74621706,58979.0,58978.0,0.08524214]
[1723853580839,1.74521706,58979.0,58978.0,0.08524214]
[1723853581051,1.74624486,58979.0,58978.0,0.08524214]
[1723853581256,1.9177994,58979.0,58978.0,0.08524214]
[1723853581463,1.81888162,58979.0,58978.0,0.08614854]
[1723853581674,1.94504135,58979.0,58978.0,0.01214733]
[1723853581892,1.64732708,58979.0,58978.0,0.01214733]
[1723853583714,1.71531208,58979.0,58978.0,0.01214733]
[1723853585388,0.17299369,58972.0,58971.0,0.0002]
[1723853585631,1.30069533,58972.0,58971.0,0.0002]
[1723853585924,1.03509769,58965.0,58964.0,0.0390911]
[1723853586189,1.88895338,58965.0,58964.0,0.0390911]
[1723853586952,1.2223142,58952.0,58951.0,0.0002]
[1723853588008,1.3958142,58952.0,58951.0,0.0002]
[1723853589301,1.3958142,58952.0,58951.0,0.0032]
[1723853589727,1.39498466,58952.0,58951.0,0.0032]
[1723853589943,2.0052732,58952.0,58951.0,0.0032]
[1723853590362,1.6660142,58952.0,58951.0,0.0032]
[1723853591297,1.6670142,58952.0,58951.0,0.0032]
[1723853591547,1.6660142,58952.0,58951.0,0.0032]
[1723853591753,1.6660142,58952.0,58951.0,0.0002]
[1723853591957,1.6680142,58952.0,58951.0,0.0002]
[1723853592851,1.6680142,58952.0,58951.0,0.2823]
[1723853592852,0.2605672,58952.0,58951.0,0.2823]
[1723853593800,0.04036593,58952.0,58951.0,0.451932]
[1723853594007,0.04036593,58952.0,58951.0,1.24079387]
[1723853594008,0.032,58952.0,58951.0,1.24079387]
[1723853594215,0.032,58952.0,58951.0,1.58005787]
[1723853594427,0.002,58952.0,58951.0,1.61403787]
[1723853594780,0.03,58958.0,58957.0,1.130175]
[1723853594978,0.0458515,58958.0,58957.0,1.130175]
[1723853595203,0.0458515,58958.0,58957.0,1.230175]
[1723853595587,0.03,58958.0,58957.0,1.569405]
[1723853596001,0.03,58958.0,58957.0,1.564405]
[1723853596210,0.031,58958.0,58957.0,1.565405]
[1723853596418,0.031,58958.0,58957.0,1.57587539]
[1723853608746,0.031,58958.0,58957.0,1.57678289]
[1723853609131,0.031825,58958.0,58957.0,1.57678289]
[1723853624266,0.05209819,58958.0,58957.0,0.27699289]
[1723853624469,0.05209819,58958.0,58957.0,0.0019075]
[1723853624470,0.34029819,58958.0,58957.0,0.0019075]
[1723853624668,0.33929819,58958.0,58957.0,0.0009075]
[1723853625102,0.34029819,58958.0,58957.0,0.0019075]
[1723853625522,0.33929819,58958.0,58957.0,0.0009075]
[1723853625722,0.34029819,58958.0,58957.0,0.0019075]
[1723853627659,0.34029819,58958.0,58957.0,0.0009075]
[1723853627892,0.33929819,58958.0,58957.0,0.0009075]
[1723853628120,0.34029819,58958.0,58957.0,0.0019075]
[1723853628551,0.33929819,58958.0,58957.0,0.1715225]
[1723853628765,0.34029819,58958.0,58957.0,0.1715225]
[1723853628936,0.05009819,58958.0,58957.0,0.1715225]
[1723853629167,0.05109819,58958.0,58957.0,0.1715225]
[1723853629366,0.05209819,58958.0,58957.0,0.1715225]
[1723853629566,0.05009819,58958.0,58957.0,0.1715225]
[1723853629770,0.05009819,58958.0,58957.0,0.5107525]
[1723853630041,0.05209819,58958.0,58957.0,0.5107525]
[1723853632034,0.05209819,58958.0,58957.0,0.51070207]
[1723853632660,0.05209819,58958.0,58957.0,0.51034253]
[1723853632871,0.17999819,58958.0,58957.0,0.51034253]
[1723853633278,0.17999819,58958.0,58957.0,0.17111253]
[1723853634206,0.33789819,58958.0,58957.0,0.00149753]
[1723853638014,0.05209819,58958.0,58957.0,0.17111253]
[1723853638265,0.05209819,58958.0,58957.0,0.51034253]
[1723853638785,0.0476765,58958.0,58957.0,0.84957253]
[1723853639018,0.05009819,58958.0,58957.0,0.84957253]
[1723853640839,0.001825,58958.0,58957.0,1.47030253]
[1723853641046,0.001825,58958.0,58957.0,1.61789186]
[1723853641244,0.001825,58958.0,58957.0,1.95729232]
[1723853642060,0.001825,58958.0,58957.0,1.95711975]
[1723853642233,0.001825,58958.0,58957.0,1.95729021]
[1723853643285,0.001825,58958.0,58957.0,1.95769806]
[1723853644828,0.001825,58958.0,58957.0,1.95729021]
[1723853646096,0.001825,58958.0,58957.0,1.95711975]
[1723853646267,0.001825,58958.0,58957.0,1.95729006]
[1723853646932,0.001825,58958.0,58957.0,1.95769791]
[1723853647140,0.001825,58958.0,58957.0,2.29692791]
[1723853647345,0.001825,58958.0,58957.0,2.46848245]
[1723853648832,0.000825,58958.0,58957.0,2.46748245]
[1723853650255,0.001825,58958.0,58957.0,2.47648245]
[1723853651147,0.001825,58958.0,58957.0,2.47590321]
[1723853651537,0.001825,58958.0,58957.0,2.45131707]
[1723853651701,0.001825,58958.0,58957.0,2.47648152]
[1723853653274,0.03,58976.0,58975.0,1.186941]
[1723853653693,0.03,58976.0,58975.0,1.286941]
[1723853654934,0.031,58976.0,58975.0,1.286941]
[1723853657881,0.031,58976.0,58975.0,1.29749879]
[1723853662969,0.31942169,58976.0,58975.0,0.95837279]
[1723853663172,0.317,58976.0,58975.0,0.95837279]
[1723853663472,0.31782954,58976.0,58975.0,0.95837279]
[1723853664611,0.31942169,58976.0,58975.0,0.95837279]
[1723853666163,0.317,58976.0,58975.0,0.95837279]
[1723853666575,0.001,58976.0,58975.0,1.29749879]
[1723853666776,0.001,58976.0,58975.0,1.45279879]
[1723853666982,0.001,58976.0,58975.0,1.79192479]
[1723853667183,0.001,58976.0,58975.0,1.45279879]
[1723853667444,0.001,58976.0,58975.0,1.63155197]
[1723853667645,0.000824,58979.0,58978.0,1.46895931]
[1723853667864,0.000824,58979.0,58978.0,1.61654203]
[1723853668089,0.000824,58979.0,58978.0,1.95507272]
[1723853669025,0.001824,58979.0,58978.0,1.96507033]
[1723853670042,0.001824,58979.0,58978.0,1.68357033]